fUSD/lending_fUSD_20260406
["ID","MTS","AMOUNT","RATE_DAILY","PERIOD"]
[419906361,1775495476029,-500.0,0.00015992,2]
[419906362,1775495476038,-500.0,0.00015992,2]
[419906363,1775495476048,-500.0,0.00015992,2]
[419906364,1775495476057,-500.0,0.00015992,2]
[419906365,1775495476066,-500.0,0.00015992,2]
[419906366,1775495476075,-500.0,0.00015992,2]
[419906367,1775495476084,-256.00425953,0.00015992,2]
[419906368,1775495476094,-500.0,0.00015992,2]
[419906369,1775495476103,-500.0,0.00015992,2]
[419906370,1775495476112,-500.0,0.00015992,2]
[419906371,1775495476122,-500.0,0.00015992,2]
[419906372,1775495476131,-500.0,0.00015992,2]
[419906373,1775495476140,-500.0,0.00015992,2]
[419906374,1775495476150,-500.0,0.00015992,2]
[419906375,1775495476159,-500.0,0.00015992,2]
[419906376,1775495476169,-500.0,0.00015992,2]
[419906377,1775495476184,-500.0,0.00015992,2]
[419906378,1775495476194,-500.0,0.00015992,2]
[419906379,1775495476205,-514.47518034,0.00015992,2]
[419906380,1775495476215,-500.0,0.00015992,2]
[419906381,1775495476225,-500.0,0.00015999,2]
[419906382,1775495476235,-500.0,0.00015999,2]
[419906383,1775495476244,-176.21304902,0.00015999,2]
[419906384,1775495476255,-500.0,0.00015999,2]
[419906385,1775495476265,-4008.1398043,0.00015999,2]
[419906386,1775495476275,-355.21585311,0.00015999,2]
[419906387,1775495476285,-500.0,0.00015999,2]
[419906388,1775495476295,-500.0,0.00015999,2]
[419906389,1775495476304,-500.0,0.00015999,2]
[419906390,1775495476314,-500.0,0.00015999,2]
[419906391,1775495476324,-500.0,0.00015999,2]
[419906392,1775495476335,-348.586408,0.00015999,2]
[419906393,1775495476345,-500.0,0.00015999,2]
[419906394,1775495476355,-500.0,0.00015999,2]
[419906395,1775495476364,-500.0,0.00015999,2]
[419906396,1775495476374,-500.0,0.00015999,2]
[419906397,1775495476384,-500.0,0.00015999,2]
[419906398,1775495476395,-500.0,0.00015999,2]
[419906399,1775495476406,-500.0,0.00015999,2]
[419906400,1775495476415,-500.0,0.00015999,2]
[419906401,1775495476425,-500.0,0.00015999,2]
[419906402,1775495476435,-500.0,0.00015999,2]
[419906403,1775495476444,-500.0,0.00015999,2]
[419906404,1775495476454,-500.0,0.00015999,2]
[419906405,1775495476465,-500.0,0.00015999,2]
[419906406,1775495476476,-500.0,0.00015999,2]
[419906407,1775495476486,-500.0,0.00015999,2]
[419906408,1775495476496,-500.0,0.00015999,2]
[419906409,1775495476506,-150.0,0.00015999,2]
[419906410,1775495476515,-500.0,0.00015999,2]
[419906411,1775495476526,-500.0,0.00015999,2]
[419906412,1775495476535,-500.0,0.00015999,2]
[419906413,1775495476545,-500.0,0.00015999,2]
[419906414,1775495476554,-500.0,0.00015999,2]
[419906415,1775495476564,-500.0,0.00015999,2]
[419906416,1775495476573,-500.0,0.00015999,2]
[419906417,1775495476583,-500.0,0.00015999,2]
[419906418,1775495476593,-500.0,0.00015999,2]
[419906419,1775495476602,-500.0,0.00015999,2]
[419906420,1775495476612,-500.0,0.00015999,2]
[419906421,1775495476621,-500.0,0.00015999,2]
[419906422,1775495476631,-500.0,0.00015999,2]
[419906423,1775495476641,-500.0,0.00015999,2]
[419906424,1775495476650,-500.0,0.00015999,2]
[419906425,1775495476660,-500.0,0.00015999,2]
[419906426,1775495476669,-500.0,0.00015999,2]
[419906427,1775495476679,-500.0,0.00015999,2]
[419906428,1775495476688,-500.0,0.00015999,2]
[419906429,1775495476698,-500.0,0.00015999,2]
[419906430,1775495476708,-500.0,0.00015999,2]
[419906431,1775495476720,-500.0,0.00015999,2]
[419906432,1775495476729,-500.0,0.00015999,2]
[419906433,1775495476738,-500.0,0.00015999,2]
[419906434,1775495476748,-500.0,0.00015999,2]
[419906435,1775495476757,-500.0,0.00015999,2]
[419906436,1775495476767,-500.0,0.00015999,2]
[419906437,1775495476776,-500.0,0.00015999,2]
[419906438,1775495476786,-500.0,0.00015999,2]
[419906439,1775495476795,-500.0,0.00015999,2]
[419906440,1775495476804,-489.61287223,0.00015999,2]
[419906441,1775495476814,-150.0,0.00015999,2]
[419906442,1775495476823,-230.53339563,0.00015999,2]
[419906443,1775495476832,-500.0,0.00015999,2]
[419906444,1775495476842,-500.0,0.00015999,2]
[419906445,1775495476852,-500.0,0.00015999,2]
[419906446,1775495476862,-500.0,0.00015999,2]
[419906447,1775495476872,-500.0,0.00015999,2]
[419906448,1775495476881,-500.0,0.00015999,2]
[419906449,1775495476891,-500.0,0.00015999,2]
[419906450,1775495476901,-500.0,0.00015999,2]
[419906451,1775495476910,-500.0,0.00015999,2]
[419906452,1775495476920,-500.0,0.00015999,2]
[419906453,1775495476930,-500.0,0.00015999,2]
[419906454,1775495476939,-500.0,0.00015999,2]
[419906455,1775495476948,-500.0,0.00015999,2]
[419906456,1775495476958,-500.0,0.00015999,2]
[419906457,1775495476969,-500.0,0.00015999,2]
[419906458,1775495476979,-500.0,0.00015999,2]
[419906459,1775495476988,-500.0,0.00015999,2]
[419906460,1775495476998,-500.0,0.00015999,2]
[419906461,1775495477007,-500.0,0.00015999,2]
[419906462,1775495477016,-500.0,0.00015999,2]
[419906463,1775495477027,-500.0,0.00015999,2]
[419906464,1775495477037,-500.0,0.00015999,2]
[419906465,1775495477046,-500.0,0.00015999,2]
[419906466,1775495477056,-500.0,0.00015999,2]
[419906467,1775495477065,-500.0,0.00015999,2]
[419906468,1775495477075,-500.0,0.00015999,2]
[419906469,1775495477084,-500.0,0.00015999,2]
[419906470,1775495477094,-500.0,0.00015999,2]
[419906471,1775495477103,-500.0,0.00015999,2]
[419906472,1775495477113,-500.0,0.00015999,2]
[419906473,1775495477122,-500.0,0.00015999,2]
[419906474,1775495477132,-500.0,0.00015999,2]
[419906475,1775495477142,-500.0,0.00015999,2]
[419906476,1775495477151,-500.0,0.00015999,2]
[419906477,1775495477161,-500.0,0.00015999,2]
[419906478,1775495477171,-500.0,0.00015999,2]
[419906479,1775495477180,-500.0,0.00015999,2]
[419906480,1775495477191,-500.0,0.00015999,2]
[419906481,1775495477201,-520.24272845,0.00015999,2]
[419906482,1775495477210,-150.0,0.00016,2]
[419906483,1775495477221,-150.0,0.00016,2]
[419906484,1775495477231,-410792.38760274,0.00016,2]
[419906485,1775495477240,-1823797.21437898,0.00016,2]
[419906486,1775495477317,-121.57681,0.00016,2]
[419906487,1775495477448,-500.0,0.00012146,2]
[419906488,1775495477458,-1222.333191,0.00013699,2]
[419906489,1775495477469,-197.568857,0.00013699,2]
[419906490,1775495477479,-157.138397,0.00013699,2]
[419906491,1775495477489,-1222.333191,0.00013699,2]
[419906492,1775495477498,-20235.57914904,0.00016,2]
[419906493,1775495477510,-412.0,0.00016,2]
[419906494,1775495477523,-1211.0,0.00016,2]
[419906495,1775495477537,-561.47611087,0.00016,2]
[419906496,1775495477562,-500.0,0.0001242,2]
[419906497,1775495477572,-3479.137619,0.00016,2]
[419906498,1775495477584,-24104.6103854,0.00016,2]
[419906499,1775495477611,-157.138397,0.00013699,2]
[419906500,1775495477620,-806.28762651,0.00016,2]
[419906501,1775495478393,-500.0,0.00012694,2]
[419906502,1775495478403,-197.568857,0.00013699,2]
[419906503,1775495478412,-157.138397,0.00013699,2]
[419906504,1775495478421,-157.138397,0.00013699,2]
[419906505,1775495478430,-197.568857,0.00013699,2]
[419906506,1775495478440,-196.402077,0.00013699,2]
[419906507,1775495478448,-157.138397,0.00013699,2]
[419906508,1775495478457,-197.568857,0.00013699,2]
[419906509,1775495478468,-157.138397,0.00013699,2]
[419906510,1775495478477,-1222.333194,0.00013699,2]
[419906511,1775495478486,-157.138397,0.00013699,2]
[419906512,1775495478495,-197.568857,0.00013699,2]
[419906513,1775495478504,-4359.67503407,0.00016,2]
[419906514,1775495478516,-6767.32040939,0.00016,2]
[419906515,1775495478527,-532956.3458989,0.00016,2]
[419906516,1775495478764,-256.14,0.00013203,2]
[419906517,1775495478774,-157.138397,0.00013699,2]
[419906518,1775495478783,-197.568857,0.00013699,2]
[419906519,1775495478792,-157.138397,0.00013699,2]
[419906520,1775495478801,-197.568857,0.00013699,2]
[419906521,1775495478811,-197.568857,0.00013699,2]
[419906522,1775495478820,-197.568857,0.00013699,2]
[419906523,1775495478829,-157.138401,0.00013699,2]
[419906524,1775495478838,-197.568858,0.00013699,2]
[419906525,1775495478848,-256.14,0.00014499,2]
[419906526,1775495478856,-98.460519,0.00014739,2]
[419906527,1775495478872,-157.679481,0.00014739,2]
[419906528,1775495478882,-213.45,0.0001501,2]
[419906529,1775495478892,-107833.96374009,0.00016,2]
[419906530,1775495478903,-20100.22222643,0.00016,2]
[419906531,1775495478914,-4148.76115389,0.00016,2]
[419906532,1775495479349,-46511.36743684,0.00016,2]
[419906533,1775495479360,-728.71282984,0.00016,2]
[419906534,1775495479371,-2606.5245106,0.00016,2]
[419906535,1775495479382,-266.180693,0.00016,2]
[419906555,1775496335105,-1852.42,0.0001007,2]
[419906556,1775496335127,-1399.09,0.00010193,2]
[419906557,1775496335149,-166.66666667,0.00010238,2]
[419906558,1775496335169,-1209.06,0.00010314,2]
[419906559,1775496335190,-250.0,0.00010326,2]
[419906560,1775496335210,-300.0,0.00010337,2]
[419906561,1775496335232,-1200.0,0.00010337,2]
[419906562,1775496335252,-722.0,0.00010338,2]
[419906563,1775496335273,-300.0,0.00010338,2]
[419906564,1775496335294,-300.0,0.00010338,2]
[419906565,1775496335316,-9109.65,0.00010339,2]
[419906566,1775496335336,-4233.0,0.000105,5]
[419906567,1775496335356,-4518.94,0.00010639,2]
[419906568,1775496335378,-200.0,0.000107,3]
[419906569,1775496335400,-500.0,0.000108,3]
[419906570,1775496335422,-400.0,0.000108,3]
[419906571,1775496335441,-500.0,0.00010899,2]
[419906572,1775496335463,-500.0,0.00010899,2]
[419906573,1775496335482,-500.0,0.00010899,2]
[419906574,1775496335502,-500.0,0.00010899,2]
[419906575,1775496335523,-500.0,0.00010899,2]
[419906576,1775496335543,-500.0,0.00010899,2]
[419906577,1775496335564,-500.0,0.00010899,2]
[419906578,1775496335585,-500.0,0.00010899,2]
[419906579,1775496335606,-43.76958992,0.00010899,2]
[419906584,1775496439080,-800.0,0.000107,3]
[419906585,1775496439102,-1700.0,0.000108,3]
[419906586,1775496439123,-300.0,0.00010898,2]
[419906587,1775496439144,-300.0,0.00010898,2]
[419906588,1775496439166,-456.23041008,0.00010899,2]
[419906589,1775496439187,-65.92734239,0.00010899,2]
[419906593,1775496555088,-600.0,0.000107,3]
[419906594,1775496555116,-1200.0,0.000108,3]
[419906595,1775496555141,-160.39801811,0.00010873,2]
[419906596,1775496555167,-341.21474486,0.00010873,2]
[419906597,1775496555194,-500.0,0.00010873,2]
[419906598,1775496555221,-500.0,0.00010873,2]
[419906599,1775496556235,-300.0,0.00010898,2]
[419906600,1775496556262,-434.07265761,0.00010899,2]
[419906601,1775496556282,-500.0,0.00010899,2]
[419906602,1775496556302,-500.0,0.00010899,2]
[419906603,1775496556322,-500.0,0.00010899,2]
[419906604,1775496556342,-500.0,0.00010899,2]
[419906605,1775496556361,-500.0,0.00010899,2]
[419906606,1775496556382,-500.0,0.00010899,2]
[419906607,1775496556403,-500.0,0.00010899,2]
[419906608,1775496556423,-332.55093908,0.00010899,2]
[419906609,1775496556443,-500.0,0.00010899,2]
[419906610,1775496556463,-500.0,0.00010899,2]
[419906611,1775496556483,-500.0,0.00010899,2]
[419906612,1775496556503,-277.12059173,0.00010899,2]
[419906613,1775496556523,-500.0,0.00010899,2]
[419906614,1775496556543,-500.0,0.00010899,2]
[419906615,1775496556563,-486.95555034,0.00010899,2]
[419906616,1775496556585,-500.0,0.00010899,2]
[419906617,1775496556604,-503.11279544,0.00010899,2]
[419906618,1775496556628,-2099.03374329,0.00010899,2]
[419906619,1775496556652,-2012.49280066,0.00010899,2]
[419906620,1775496572177,-500.0,0.00010899,2]
[419906621,1775496572203,-86.54094263,0.00010899,2]
[419906622,1775496572227,-2099.03374329,0.00010899,2]
[419906623,1775496572251,-2099.03374329,0.00010899,2]
[419906624,1775496572275,-2099.03374329,0.00010899,2]
[419906625,1775496572303,-2099.03374329,0.00010899,2]
[419906626,1775496572328,-2099.03374329,0.00010899,2]
[419906627,1775496572354,-2099.03374329,0.00010899,2]
[419906628,1775496572379,-2099.03374329,0.00010899,2]
[419906629,1775496572405,-2099.03374329,0.00010899,2]
[419906630,1775496572430,-2099.03374329,0.00010899,2]
[419906631,1775496572455,-2099.03374329,0.00010899,2]
[419906632,1775496572480,-2099.03374329,0.00010899,2]
[419906633,1775496572506,-2099.03374329,0.00010899,2]
[419906634,1775496572531,-2099.03374329,0.00010899,2]
[419906635,1775496572557,-2099.03374329,0.00010899,2]
[419906636,1775496572582,-2099.03374329,0.00010899,2]
[419906637,1775496572608,-2099.03374329,0.00010899,2]
[419906638,1775496572633,-2099.03374329,0.00010899,2]
[419906639,1775496572659,-2099.03374329,0.00010899,2]
[419906640,1775496572685,-2099.03374329,0.00010899,2]
[419906641,1775496572713,-2099.03374329,0.00010899,2]
[419906642,1775496572738,-2099.03374329,0.00010899,2]
[419906643,1775496572764,-2099.03374329,0.00010899,2]
[419906644,1775496572789,-2099.03374329,0.00010899,2]
[419906645,1775496572814,-2099.03374329,0.00010899,2]
[419906646,1775496572839,-2099.03374329,0.00010899,2]
[419906647,1775496572863,-2099.03374329,0.00010899,2]
[419906648,1775496572888,-500.18171183,0.00010899,2]
[419906654,1775496632512,-586.9,0.00010219,2]
[419906655,1775496632522,-818.23503512,0.00010877,2]
[419906656,1775496632535,-577.41496488,0.00010877,2]
[419906657,1775496632545,-443.21409104,0.0001089,2]
[419906658,1775496632557,-39.51491495,0.00010898,2]
[419906659,1775496632569,-1160.48508505,0.00010898,2]
[419906660,1775496632579,-300.0,0.00010898,2]
[419906661,1775496632589,-300.0,0.00010898,2]
[419906662,1775496632599,-150.0,0.00010898,2]
[419906663,1775496632609,-500.0,0.00010899,2]
[419906664,1775496632618,-150.0,0.000109,2]
[419906665,1775496632628,-667.79690017,0.000109,3]
[419906666,1775496632640,-781.95418243,0.000109,3]
[419906667,1775496632652,-1150.2489174,0.000109,3]
[419906668,1775496632661,-3014.71403812,0.000109,2]
[419906669,1775496632673,-10311.64615454,0.000109,2]
[419906670,1775496632685,-900.10494811,0.000109,2]
[419906671,1775496632697,-1585.10498767,0.000109,2]
[419906672,1775496632713,-16685.42478723,0.000109,2]
[419906673,1775496632725,-1668.97568377,0.000109,2]
[419906674,1775496632738,-21967.62055404,0.000109,2]
[419906675,1775496632750,-347.43508066,0.000109,2]
[419906676,1775496632762,-687.16138692,0.000109,2]
[419906684,1775496640794,-95408.17846005,0.000109,2]
[419906685,1775496640807,-354.905,0.000109,2]
[419906686,1775496640819,-450.9,0.000109,2]
[419906687,1775496640848,-342.26322073,0.000109,2]
[419906689,1775496640903,-1346275.56569816,0.000109,2]
[419906690,1775496640913,-1800.0,0.000109,3]
[419906691,1775496640923,-185.52,0.00010959,2]
[419906692,1775496640932,-150.0,0.00010965,7]
[419906693,1775496640942,-4012.1343,0.00011,2]
[419906694,1775496640951,-4151.2258,0.00011,2]
[419906695,1775496640961,-98674.7795,0.00011,2]
[419906696,1775496640971,-2500.0,0.00011,2]
[419906697,1775496640980,-500.0,0.00011073,2]
[419906698,1775496640990,-500.62896533,0.00011073,2]
[419906699,1775496640999,-500.0,0.00011073,2]
[419906700,1775496641010,-24269.42299239,0.00011099,2]
[419906701,1775496641019,-1069.49567053,0.00011099,2]
[419906702,1775496641029,-5491.6129,0.00011099,2]
[419906703,1775496641038,-119053.1056,0.000111,2]
[419906704,1775496641048,-5131.61754786,0.000111,2]
[419906705,1775496641058,-344.12797305,0.000111,2]
[419906706,1775496641068,-165.21,0.00011104,2]
[419906707,1775496641078,-1924.0899,0.00011151,2]
[419906708,1775496641087,-549.675327,0.00011173,2]
[419906709,1775496641096,-500.0,0.00011173,2]
[419906710,1775496641106,-500.68172956,0.00011173,2]
[419906711,1775496641116,-500.29772521,0.00011173,2]
[419906712,1775496641130,-500.95520336,0.00011173,2]
[419906713,1775496641140,-500.0,0.00011173,2]
[419906714,1775496641150,-500.0,0.00011173,2]
[419906715,1775496641160,-500.0,0.00011173,2]
[419906716,1775496641169,-167.73939669,0.00011173,2]
[419906717,1775496641179,-500.0,0.00011173,2]
[419906718,1775496641189,-500.0,0.00011173,2]
[419906719,1775496641199,-170.09504983,0.00011173,2]
[419906720,1775496641209,-500.16623209,0.00011173,2]
[419906721,1775496641219,-500.0,0.00011173,2]
[419906722,1775496641229,-500.0,0.00011173,2]
[419906723,1775496641239,-500.0,0.00011173,2]
[419906724,1775496641249,-500.0,0.00011173,2]
[419906725,1775496641261,-500.26271237,0.00011173,2]
[419906726,1775496641271,-166.15891761,0.00011173,2]
[419906727,1775496641281,-500.17694496,0.00011173,2]
[419906728,1775496641290,-500.0,0.00011173,2]
[419906729,1775496641300,-500.0,0.00011173,2]
[419906730,1775496641310,-245.86073687,0.00011173,2]
[419906731,1775496641320,-375.51397884,0.00011173,2]
[419906732,1775496641330,-167.64405758,0.00011173,2]
[419906733,1775496641340,-164.42551869,0.00011173,2]
[419906734,1775496641349,-500.0,0.00011173,2]
[419906735,1775496641360,-151.0,0.00011188,2]
[419906736,1775496641370,-1066.46,0.00011193,2]
[419906737,1775496641380,-500.0,0.00011193,2]
[419906738,1775496641390,-500.0,0.00011193,2]
[419906739,1775496641400,-500.0,0.00011193,2]
[419906740,1775496641410,-500.0,0.00011193,2]
[419906741,1775496641419,-200.0,0.00011193,2]
[419906742,1775496641429,-500.0,0.00011193,2]
[419906743,1775496641439,-500.0,0.00011193,2]
[419906745,1775496641449,-500.0,0.00011193,2]
[419906747,1775496641459,-500.0,0.00011193,2]
[419906749,1775496641469,-500.0,0.00011193,2]
[419906751,1775496641478,-500.0,0.00011193,2]
[419906753,1775496641488,-500.0,0.00011193,2]
[419906754,1775496641498,-500.0,0.00011193,2]
[419906755,1775496641509,-500.0,0.00011193,2]
[419906756,1775496641519,-222.29236238,0.00011193,2]
[419906757,1775496641528,-151.0,0.00011193,2]
[419906758,1775496641538,-151.0,0.00011193,2]
[419906759,1775496641548,-151.0,0.00011193,2]
[419906760,1775496641558,-151.0,0.00011193,2]
[419906761,1775496641568,-500.0,0.00011193,2]
[419906762,1775496641578,-151.0,0.00011193,2]
[419906763,1775496641588,-151.0,0.00011193,2]
[419906764,1775496641599,-500.0,0.00011193,2]
[419906765,1775496641609,-151.0,0.00011193,2]
[419906766,1775496641618,-151.0,0.00011193,2]
[419906767,1775496641628,-500.0,0.00011193,2]
[419906768,1775496641641,-151.0,0.00011193,2]
[419906769,1775496641651,-151.0,0.00011193,2]
[419906770,1775496641661,-500.0,0.00011193,2]
[419906771,1775496641671,-151.0,0.00011193,2]
[419906772,1775496641681,-151.0,0.00011193,2]
[419906773,1775496641691,-500.0,0.00011193,2]
[419906775,1775496641701,-151.0,0.00011193,2]
[419906777,1775496641710,-151.0,0.00011193,2]
[419906779,1775496641720,-500.0,0.00011193,2]
[419906781,1775496641730,-151.0,0.00011193,2]
[419906783,1775496641739,-151.0,0.00011193,2]
[419906784,1775496641749,-500.0,0.00011193,2]
[419906785,1775496641758,-151.0,0.00011193,2]
[419906786,1775496641768,-151.0,0.00011193,2]
[419906787,1775496641778,-500.0,0.00011193,2]
[419906788,1775496641788,-151.0,0.00011193,2]
[419906789,1775496641798,-151.0,0.00011193,2]
[419906790,1775496641807,-500.0,0.00011193,2]
[419906791,1775496641817,-151.0,0.00011193,2]
[419906792,1775496641827,-151.0,0.00011193,2]
[419906793,1775496641836,-151.0,0.00011193,2]
[419906794,1775496641846,-500.0,0.00011193,2]
[419906795,1775496641856,-151.0,0.00011193,2]
[419906796,1775496641866,-500.0,0.00011193,2]
[419906797,1775496641875,-151.0,0.00011193,2]
[419906798,1775496641884,-500.0,0.00011193,2]
[419906799,1775496641894,-151.0,0.00011193,2]
[419906800,1775496641904,-151.0,0.00011193,2]
[419906801,1775496641914,-151.0,0.00011193,2]
[419906802,1775496641924,-151.0,0.00011193,2]
[419906803,1775496641934,-151.0,0.00011193,2]
[419906804,1775496641943,-151.0,0.00011193,2]
[419906805,1775496641954,-151.0,0.00011193,2]
[419906806,1775496641963,-151.0,0.00011193,2]
[419906807,1775496641973,-1337.30371513,0.00011193,2]
[419906809,1775496641982,-151.0,0.00011197,2]
[419906810,1775496641992,-151.0,0.00011197,2]
[419906811,1775496642002,-151.0,0.00011197,2]
[419906812,1775496642012,-151.0,0.00011197,2]
[419906813,1775496642022,-155.0,0.00011198,2]
[419906814,1775496642032,-211120.19931012,0.00011198,2]
[419906815,1775496642042,-1025.01196795,0.00011199,3]
[419906816,1775496642052,-1000.0,0.000112,2]
[419906817,1775496642061,-33035.6402,0.000112,2]
[419906818,1775496642071,-817.0,0.00011204,2]
[419906819,1775496642081,-200.0,0.00011279,30]
[419906820,1775496642091,-182.73,0.00011279,7]
[419906821,1775496642101,-361.0,0.00011344,2]
[419906822,1775496642111,-24269.42299238,0.00011367,2]
[419906823,1775496642120,-304.93834689,0.00011421,2]
[419906824,1775496642130,-1000.0,0.00011421,2]
[419906825,1775496642139,-500.0,0.00011447,2]
[419906826,1775496642149,-1066.46,0.00011467,2]
[419906827,1775496642159,-500.0,0.00011621,2]
[419906828,1775496642168,-1593.0,0.00011687,2]
[419906829,1775496642178,-1366.15546836,0.00011711,2]
[419906830,1775496642189,-165.21,0.00011715,2]
[419906831,1775496642199,-1000.0,0.00011721,2]
[419906832,1775496642210,-461.10773956,0.00011721,2]
[419906833,1775496642220,-1000.0,0.00011721,2]
[419906834,1775496642230,-501.75389505,0.00011721,2]
[419906835,1775496642240,-500.25334159,0.00011721,2]
[419906836,1775496642250,-500.0,0.00011721,2]
[419906837,1775496642260,-704.26825693,0.00011721,2]
[419906838,1775496642270,-1066.46,0.00011741,2]
[419906839,1775496642280,-200.0,0.00011741,2]
[419906840,1775496642289,-629.47078979,0.00011741,2]
[419906841,1775496642299,-600.0,0.0001177,2]
[419906842,1775496642320,-600.0,0.0001177,2]
[419906843,1775496642332,-600.0,0.0001177,2]
[419906844,1775496642342,-600.0,0.0001177,2]
[419906845,1775496642352,-195.0,0.0001177,2]
[419906846,1775496642362,-250.0,0.0001177,2]
[419906847,1775496642372,-344.12797301,0.000119,2]
[419906848,1775496642382,-24269.42299238,0.00011933,2]
[419906849,1775496642392,-255.0,0.00011944,2]
[419906850,1775496642402,-195.0,0.00011964,2]
[419906851,1775496642412,-1500.0,0.00011968,2]
[419906852,1775496642422,-420.0,0.00011977,2]
[419906853,1775496642432,-195.0,0.00011988,2]
[419906854,1775496642443,-1680.0,0.00011988,2]
[419906855,1775496642453,-195.0,0.00011989,2]
[419906856,1775496642463,-1066.46,0.00012015,2]
[419906857,1775496642474,-150.0,0.00012146,2]
[419906858,1775496642484,-168.0006,0.000122,2]
[419906859,1775496642494,-150.0,0.0001223,2]
[419906860,1775496642505,-150.0,0.0001223,2]
[419906861,1775496642515,-150.0,0.0001223,2]
[419906862,1775496642525,-150.0,0.0001223,2]
[419906863,1775496642535,-150.0,0.0001223,2]
[419906864,1775496642545,-150.0,0.0001223,2]
[419906865,1775496642555,-150.0,0.0001223,2]
[419906866,1775496642565,-150.0,0.0001223,2]
[419906867,1775496642575,-150.0,0.0001223,2]
[419906868,1775496642585,-150.0,0.0001223,2]
[419906869,1775496642595,-150.0,0.0001223,2]
[419906870,1775496642606,-500.0,0.00012268,2]
[419906871,1775496642616,-500.0,0.00012268,2]
[419906872,1775496642626,-150.0,0.00012279,2]
[419906873,1775496642636,-1066.46,0.00012289,2]
[419906874,1775496642646,-200.0,0.00012289,2]
[419906875,1775496642657,-150.0,0.00012302,2]
[419906876,1775496642667,-150.0,0.0001231,2]
[419906877,1775496642677,-150.0,0.0001231,2]
[419906878,1775496642687,-150.0,0.00012315,2]
[419906879,1775496642697,-165.21,0.00012325,2]
[419906880,1775496642707,-150.0,0.00012327,2]
[419906881,1775496642717,-200.0,0.00012364,2]
[419906882,1775496642727,-150.0,0.00012373,2]
[419906883,1775496642737,-150.0,0.00012376,2]
[419906884,1775496642747,-150.0,0.0001239,2]
[419906885,1775496642757,-150.0,0.0001239,2]
[419906886,1775496642766,-150.0,0.000124,2]
[419906887,1775496642776,-150.0,0.000124,2]
[419906888,1775496642787,-152.0,0.00012403,3]
[419906889,1775496642797,-150.0,0.00012424,2]
[419906890,1775496642807,-150.0,0.00012424,2]
[419906891,1775496642817,-160.0,0.00012443,2]
[419906892,1775496642828,-212.734062,0.00012443,2]
[419906893,1775496642838,-265.468125,0.00012443,2]
[419906894,1775496642848,-209.618726,0.00012443,2]
[419906895,1775496642858,-377.877214,0.00012443,2]
[419906897,1775496642867,-204.998279,0.00012443,2]
[419906898,1775496642878,-150.0,0.00012445,2]
[419906899,1775496642888,-150.0,0.0001247,2]
[419906900,1775496642898,-150.0,0.0001247,2]
[419906901,1775496642908,-150.0,0.00012473,2]
[419906902,1775496642917,-150.0,0.00012485,2]
[419906903,1775496642927,-24269.42299238,0.000125,2]
[419906904,1775496642937,-150.0,0.00012502,2]
[419906905,1775496642947,-150.0,0.00012516,2]
[419906906,1775496642957,-2000.0,0.00012516,2]
[419906907,1775496642967,-200.951009,0.00012518,2]
[419906908,1775496642977,-150.0,0.00012521,2]
[419906909,1775496642987,-162.613316,0.00012534,2]
[419906910,1775496642996,-160.0,0.00012534,2]
[419906911,1775496643006,-208.534064,0.00012534,2]